[Event "Early-Titled-Tuesday-Blitz-May-28-2024"]
[Site "Chess.com"]
[Date "2024.05.28"]
[Round "2"]
[White "AljoschaFeuerstack"]
[Black "DanielNaroditsky"]
[Result "0-1"]
[WhiteElo "2640"]
[BlackElo "3071"]
[TimeControl "180+1"]
[EndTime "8:19:21 PDT"]
[Termination "DanielNaroditsky won by resignation"]

1. e4 {[%clk 0:02:53]} 1... c5 {[%clk 0:02:59.7]} 2. Nf3 {[%clk 0:02:48]} 2...
Nf6 {[%clk 0:03:00]} 3. e5 {[%clk 0:02:46]} 3... Nd5 {[%clk 0:02:59.9]} 4. c3
{[%clk 0:02:43.7]} 4... d6 {[%clk 0:02:58.3]} 5. Bc4 {[%clk 0:02:38.8]} 5...
dxe5 {[%clk 0:02:55.7]} 6. Nxe5 {[%clk 0:02:39.7]} 6... e6 {[%clk 0:02:55.4]} 7.
O-O {[%clk 0:02:39]} 7... Be7 {[%clk 0:02:51.2]} 8. d4 {[%clk 0:02:38.9]} 8...
O-O {[%clk 0:02:49.2]} 9. dxc5 {[%clk 0:02:35.1]} 9... Qc7 {[%clk 0:02:49]} 10.
Nd3 {[%clk 0:02:32.4]} 10... Rd8 {[%clk 0:02:47.8]} 11. Qe2 {[%clk 0:02:26.1]}
11... b6 {[%clk 0:02:43.7]} 12. Nd2 {[%clk 0:02:14.5]} 12... bxc5 {[%clk
0:02:43.4]} 13. Nf3 {[%clk 0:02:11.6]} 13... Bb7 {[%clk 0:02:43.3]} 14. Bg5
{[%clk 0:02:06.7]} 14... Nb6 {[%clk 0:02:30.1]} 15. Bxe7 {[%clk 0:01:56.1]}
15... Qxe7 {[%clk 0:02:31]} 16. Nde5 {[%clk 0:01:39.9]} 16... Nxc4 {[%clk
0:02:31]} 17. Nxc4 {[%clk 0:01:39.8]} 17... Nd7 {[%clk 0:02:28.6]} 18. Rad1
{[%clk 0:01:38.3]} 18... Nf6 {[%clk 0:02:28.8]} 19. h3 {[%clk 0:01:26.7]} 19...
h6 {[%clk 0:02:27.8]} 20. Nfe5 {[%clk 0:01:22.6]} 20... Nd5 {[%clk 0:02:26.3]}
21. Qg4 {[%clk 0:01:06.9]} 21... Qc7 {[%clk 0:02:25.8]} 22. Rfe1 {[%clk
0:01:05.8]} 22... Nf6 {[%clk 0:02:24.7]} 23. Qg3 {[%clk 0:01:05.4]} 23... Bd5
{[%clk 0:02:19.5]} 24. b3 {[%clk 0:00:59]} 24... Bxc4 {[%clk 0:02:11.9]} 25.
Nxc4 {[%clk 0:00:57.7]} 25... Qxg3 {[%clk 0:02:10.2]} 26. fxg3 {[%clk
0:00:58.6]} 26... Rd5 {[%clk 0:02:05.5]} 27. Ne3 {[%clk 0:00:56.7]} 27... Rxd1
{[%clk 0:02:05.2]} 28. Rxd1 {[%clk 0:00:57.6]} 28... Ne4 {[%clk 0:02:04.8]} 29.
Nc4 {[%clk 0:00:47.7]} 29... Nxc3 {[%clk 0:02:04.1]} 30. Rd7 {[%clk 0:00:47.9]}
30... Nxa2 {[%clk 0:01:58.2]} 31. Ne5 {[%clk 0:00:45.9]} 31... f6 {[%clk
0:01:57.6]} 32. Nd3 {[%clk 0:00:46.3]} 32... Rc8 {[%clk 0:01:52.5]} 33. Rxa7
{[%clk 0:00:45.3]} 33... Nc3 {[%clk 0:01:53]} 34. Nf4 {[%clk 0:00:41.7]} 34...
Nb5 {[%clk 0:01:50.2]} 35. Rb7 {[%clk 0:00:33.7]} 35... Nd6 {[%clk 0:01:49.3]}
36. Rd7 {[%clk 0:00:33.6]} 36... Nf5 {[%clk 0:01:45.1]} 37. Nxe6 {[%clk
0:00:33.6]} 37... Rc6 {[%clk 0:01:45.4]} 38. Rd5 {[%clk 0:00:29.6]} 38... Ne7
{[%clk 0:01:29]} 39. Rd8+ {[%clk 0:00:29.5]} 39... Kf7 {[%clk 0:01:29.3]} 40.
Nf4 {[%clk 0:00:30]} 40... Rb6 {[%clk 0:01:26.8]} 41. Rd7 {[%clk 0:00:27.9]}
41... Rxb3 {[%clk 0:01:21.7]} 42. Rc7 {[%clk 0:00:28]} 42... Ke8 {[%clk
0:01:06.2]} 43. g4 {[%clk 0:00:26.3]} 43... Rb1+ {[%clk 0:01:02.6]} 44. Kh2
{[%clk 0:00:26]} 44... g5 {[%clk 0:01:00.9]} 45. Ne6 {[%clk 0:00:23.5]} 45...
Nd5 {[%clk 0:01:01.2]} 46. Ng7+ {[%clk 0:00:19.9]} 46... Kf8 {[%clk 0:01:01.5]}
47. Ne6+ {[%clk 0:00:20.8]} 47... Kg8 {[%clk 0:01:01.9]} 48. Rxc5 {[%clk
0:00:21.2]} 48... Ne3 {[%clk 0:01:01.4]} 49. Rc7 {[%clk 0:00:18.7]} 49... Rb2
{[%clk 0:00:58.9]} 50. Kg3 {[%clk 0:00:18.1]} 50... Nxg2 {[%clk 0:00:57.5]} 51.
Rg7+ {[%clk 0:00:16]} 51... Kh8 {[%clk 0:00:57.7]} 52. Rf7 {[%clk 0:00:16.5]}
52... h5 {[%clk 0:00:24.4]} 53. gxh5 {[%clk 0:00:13.7]} 53... Nh4 {[%clk
0:00:24.7]} 54. Nf4 {[%clk 0:00:04]} 54... Nf5+ {[%clk 0:00:23.9]} 55. Kf3
{[%clk 0:00:04.6]} 55... Rb3+ {[%clk 0:00:23]} 56. Ke4 {[%clk 0:00:03.6]} 56...
Nd6+ {[%clk 0:00:23.1]} 57. Kd5 {[%clk 0:00:01.1]} 57... Nxf7 {[%clk 0:00:22.2]}
0-1

[Event "Early-Titled-Tuesday-Blitz-May-28-2024"]
[Site "Chess.com"]
[Date "2024.05.28"]
[Round "2"]
[White "viktorskliarov"]
[Black "DenLaz"]
[Result "0-1"]
[WhiteElo "2644"]
[BlackElo "3110"]
[TimeControl "180+1"]
[EndTime "8:19:22 PDT"]
[Termination "DenLaz won by resignation"]

1. e4 {[%clk 0:03:00.9]} 1... c5 {[%clk 0:03:00.1]} 2. Nf3 {[%clk 0:03:00.6]}
2... e6 {[%clk 0:03:00.8]} 3. d4 {[%clk 0:02:59.7]} 3... cxd4 {[%clk 0:03:01.7]}
4. Nxd4 {[%clk 0:03:00.3]} 4... Nc6 {[%clk 0:03:02.1]} 5. Nc3 {[%clk 0:02:59.9]}
5... Qc7 {[%clk 0:03:02.7]} 6. Be2 {[%clk 0:02:59.1]} 6... a6 {[%clk 0:03:01.3]}
7. O-O {[%clk 0:02:59]} 7... Nf6 {[%clk 0:03:01.4]} 8. Be3 {[%clk 0:02:58.6]}
8... Be7 {[%clk 0:03:00.9]} 9. f4 {[%clk 0:02:58.3]} 9... d6 {[%clk 0:03:01.4]}
10. Kh1 {[%clk 0:02:58.6]} 10... O-O {[%clk 0:03:02]} 11. Qe1 {[%clk 0:02:59]}
11... Bd7 {[%clk 0:02:59.8]} 12. Qg3 {[%clk 0:02:58.1]} 12... Rac8 {[%clk
0:02:54.9]} 13. Rad1 {[%clk 0:02:50.4]} 13... b5 {[%clk 0:02:52.8]} 14. a3
{[%clk 0:02:50.4]} 14... Kh8 {[%clk 0:02:51.9]} 15. e5 {[%clk 0:02:29.8]} 15...
dxe5 {[%clk 0:02:48.7]} 16. Nxc6 {[%clk 0:02:29.9]} 16... exf4 {[%clk
0:02:32.1]} 17. Bxf4 {[%clk 0:02:00]} 17... Qxc6 {[%clk 0:02:31.4]} 18. Be5
{[%clk 0:02:00.7]} 18... Rcd8 {[%clk 0:02:02.4]} 19. Bf3 {[%clk 0:01:36.6]}
19... Qc8 {[%clk 0:02:01.7]} 20. Ne4 {[%clk 0:01:20.6]} 20... Ne8 {[%clk
0:02:01]} 21. Bh5 {[%clk 0:01:03.9]} 21... f6 {[%clk 0:01:49.6]} 22. Bxe8 {[%clk
0:00:33.2]} 22... Bxe8 {[%clk 0:01:45.8]} 23. Nd6 {[%clk 0:00:30.5]} 23... Qc6
{[%clk 0:01:37.5]} 24. Nxe8 {[%clk 0:00:28]} 24... Rfxe8 {[%clk 0:01:35.2]} 25.
Bc3 {[%clk 0:00:25.7]} 25... e5 {[%clk 0:01:34.1]} 26. Qh3 {[%clk 0:00:21.5]}
26... Kg8 {[%clk 0:01:29.3]} 27. Qf5 {[%clk 0:00:20.9]} 27... Qc8 {[%clk
0:01:23.5]} 28. Qe4 {[%clk 0:00:20.4]} 28... Qe6 {[%clk 0:01:23.6]} 29. h3
{[%clk 0:00:19.2]} 29... Bf8 {[%clk 0:01:15.8]} 30. Kh2 {[%clk 0:00:17.8]} 30...
Rd6 {[%clk 0:01:09.6]} 31. Rxd6 {[%clk 0:00:16.7]} 31... Qxd6 {[%clk 0:01:10.5]}
32. Rf3 {[%clk 0:00:17.2]} 32... Qe6 {[%clk 0:01:01.3]} 33. g4 {[%clk
0:00:17.1]} 33... Rd8 {[%clk 0:00:59.9]} 34. Rd3 {[%clk 0:00:17.4]} 34... Rxd3
{[%clk 0:00:59.4]} 35. cxd3 {[%clk 0:00:18.3]} 35... Qd7 {[%clk 0:00:47.7]} 36.
Kg2 {[%clk 0:00:17.8]} 36... h6 {[%clk 0:00:46.9]} 37. Kf3 {[%clk 0:00:18.1]}
37... Kf7 {[%clk 0:00:46.1]} 38. h4 {[%clk 0:00:18.5]} 38... g6 {[%clk
0:00:35.6]} 39. h5 {[%clk 0:00:17.3]} 39... gxh5 {[%clk 0:00:36.1]} 40. Qh7+
{[%clk 0:00:17.5]} 40... Ke8 {[%clk 0:00:35.9]} 41. Qg6+ {[%clk 0:00:14.3]}
41... Qf7 {[%clk 0:00:35.6]} 42. gxh5 {[%clk 0:00:08.1]} 42... Qxg6 {[%clk
0:00:10.6]} 43. hxg6 {[%clk 0:00:09]} 43... Kd7 {[%clk 0:00:11.4]} 44. d4 {[%clk
0:00:06.8]} 44... Ke6 {[%clk 0:00:10.3]} 45. dxe5 {[%clk 0:00:07.3]} 45... fxe5
{[%clk 0:00:11.2]} 46. Ke4 {[%clk 0:00:08]} 46... Bg7 {[%clk 0:00:08.7]} 47. b3
{[%clk 0:00:08.5]} 47... h5 {[%clk 0:00:09]} 48. a4 {[%clk 0:00:07.3]} 48... h4
{[%clk 0:00:08]} 49. axb5 {[%clk 0:00:06.9]} 49... axb5 {[%clk 0:00:08.1]} 50.
Bb2 {[%clk 0:00:06.9]} 50... h3 {[%clk 0:00:08]} 0-1

[Event "Early-Titled-Tuesday-Blitz-May-28-2024"]
[Site "Chess.com"]
[Date "2024.05.28"]
[Round "2"]
[White "Oleksandr_Bortnyk"]
[Black "Mikhail_Golubev"]
[Result "1/2-1/2"]
[WhiteElo "3009"]
[BlackElo "2636"]
[TimeControl "180+1"]
[EndTime "8:19:22 PDT"]
[Termination "Game drawn by repetition"]

1. e4 {[%clk 0:03:00.9]} 1... c5 {[%clk 0:03:00]} 2. Be2 {[%clk 0:03:00.8]} 2...
Nc6 {[%clk 0:02:58.2]} 3. d3 {[%clk 0:03:00.4]} 3... e6 {[%clk 0:02:53.2]} 4. f4
{[%clk 0:03:00]} 4... d5 {[%clk 0:02:53.3]} 5. Nf3 {[%clk 0:03:00.2]} 5... Bd6
{[%clk 0:02:46.6]} 6. c3 {[%clk 0:02:55.8]} 6... Nge7 {[%clk 0:02:46]} 7. e5
{[%clk 0:02:55.1]} 7... Bc7 {[%clk 0:02:44.9]} 8. Be3 {[%clk 0:02:55.2]} 8... d4
{[%clk 0:02:44.1]} 9. Bf2 {[%clk 0:02:55.6]} 9... Nd5 {[%clk 0:02:40.4]} 10. g3
{[%clk 0:02:55.3]} 10... Ba5 {[%clk 0:02:29.4]} 11. Qc1 {[%clk 0:02:52.1]} 11...
dxc3 {[%clk 0:02:22.3]} 12. bxc3 {[%clk 0:02:47.8]} 12... Nd4 {[%clk 0:02:01.9]}
13. Nxd4 {[%clk 0:02:42.7]} 13... cxd4 {[%clk 0:02:02.8]} 14. Bxd4 {[%clk
0:02:42]} 14... b5 {[%clk 0:01:20.2]} 15. O-O {[%clk 0:02:40.9]} 15... Bb7
{[%clk 0:01:20.2]} 16. Bf3 {[%clk 0:02:27.4]} 16... O-O {[%clk 0:01:18.8]} 17.
Be4 {[%clk 0:02:09.6]} 17... Rc8 {[%clk 0:01:16.7]} 18. Qe1 {[%clk 0:01:41.6]}
18... Nxc3 {[%clk 0:00:52.2]} 19. Bxc3 {[%clk 0:01:38.8]} 19... Bxe4 {[%clk
0:00:51.4]} 20. Bxa5 {[%clk 0:01:25.2]} 20... Qd4+ {[%clk 0:00:44.6]} 21. Qf2
{[%clk 0:01:24.8]} 21... Qxd3 {[%clk 0:00:39.4]} 22. Nd2 {[%clk 0:01:15.5]}
22... Rc2 {[%clk 0:00:36]} 23. Rfc1 {[%clk 0:00:49.8]} 23... Rfc8 {[%clk
0:00:33.8]} 24. Rxc2 {[%clk 0:00:44.8]} 24... Rxc2 {[%clk 0:00:34.7]} 25. Qxa7
{[%clk 0:00:43.6]} 25... h5 {[%clk 0:00:27.3]} 26. Re1 {[%clk 0:00:35.4]} 26...
Bc6 {[%clk 0:00:26.9]} 27. Qe3 {[%clk 0:00:18.3]} 27... Qd5 {[%clk 0:00:19.4]}
28. Ne4 {[%clk 0:00:18.2]} 28... Qxa2 {[%clk 0:00:19.2]} 29. Bb4 {[%clk
0:00:06.6]} 29... Rg2+ {[%clk 0:00:18.3]} 30. Kf1 {[%clk 0:00:07.1]} 30... Bxe4
{[%clk 0:00:18.3]} 31. Re2 {[%clk 0:00:04.4]} 31... Rxe2 {[%clk 0:00:14.9]} 32.
Qxe2 {[%clk 0:00:05.3]} 32... Qb1+ {[%clk 0:00:13.6]} 33. Qe1 {[%clk 0:00:05.9]}
33... Bd3+ {[%clk 0:00:13.1]} 34. Kf2 {[%clk 0:00:05.4]} 34... Qc2+ {[%clk
0:00:13]} 35. Qd2 {[%clk 0:00:05.4]} 35... Qxd2+ {[%clk 0:00:12.4]} 36. Bxd2
{[%clk 0:00:06.3]} 36... Bc4 {[%clk 0:00:12.2]} 37. h3 {[%clk 0:00:04.1]} 37...
g6 {[%clk 0:00:12.2]} 38. g4 {[%clk 0:00:03.6]} 38... hxg4 {[%clk 0:00:12.5]}
39. hxg4 {[%clk 0:00:04.5]} 39... Bd5 {[%clk 0:00:12.6]} 40. Ke3 {[%clk
0:00:04.7]} 40... Bc4 {[%clk 0:00:13.1]} 41. Kd4 {[%clk 0:00:04.7]} 41... Be2
{[%clk 0:00:13]} 42. g5 {[%clk 0:00:05.3]} 42... Bc4 {[%clk 0:00:13.3]} 43. Bb4
{[%clk 0:00:05.9]} 43... Be2 {[%clk 0:00:13.3]} 44. Kc5 {[%clk 0:00:06.8]} 44...
Bc4 {[%clk 0:00:13.5]} 45. Kd6 {[%clk 0:00:06.7]} 45... Be2 {[%clk 0:00:13.7]}
46. Kc6 {[%clk 0:00:07.3]} 46... Bc4 {[%clk 0:00:13.7]} 47. Kc5 {[%clk
0:00:08.2]} 47... Be2 {[%clk 0:00:13.9]} 48. Kd4 {[%clk 0:00:09.1]} 48... Bc4
{[%clk 0:00:14.2]} 49. Ke3 {[%clk 0:00:10]} 49... Bf1 {[%clk 0:00:13.7]} 50. Bd6
{[%clk 0:00:10.2]} 50... Bc4 {[%clk 0:00:14]} 51. Kf2 {[%clk 0:00:11]} 51... Bd5
{[%clk 0:00:14.2]} 52. Ke2 {[%clk 0:00:11.8]} 52... Bc4+ {[%clk 0:00:14.7]} 53.
Kd2 {[%clk 0:00:12.7]} 53... Bd5 {[%clk 0:00:15]} 54. Kc3 {[%clk 0:00:12.7]}
54... Bc4 {[%clk 0:00:15.6]} 55. Kb4 {[%clk 0:00:13.6]} 55... Bd3 {[%clk
0:00:15.7]} 56. Kc5 {[%clk 0:00:14.2]} 56... Be2 {[%clk 0:00:16.2]} 57. Kd4
{[%clk 0:00:15.1]} 57... Bc4 {[%clk 0:00:16.2]} 58. Be7 {[%clk 0:00:15.7]} 58...
Bf1 {[%clk 0:00:15.9]} 59. Ke3 {[%clk 0:00:15.5]} 59... Bc4 {[%clk 0:00:15.7]}
60. Kd2 {[%clk 0:00:16]} 60... Bf1 {[%clk 0:00:15.3]} 61. Bb4 {[%clk 0:00:15.1]}
61... Bc4 {[%clk 0:00:15.7]} 62. Ke1 {[%clk 0:00:16]} 62... Bd5 {[%clk
0:00:16.1]} 63. Ke2 {[%clk 0:00:16.5]} 63... Bc4+ {[%clk 0:00:16.7]} 64. Kf2
{[%clk 0:00:17.4]} 64... Bd5 {[%clk 0:00:17.2]} 65. Ke2 {[%clk 0:00:18.3]} 65...
Bc4+ {[%clk 0:00:17.7]} 66. Kf2 {[%clk 0:00:19.2]} 66... Bd5 {[%clk 0:00:18]}
67. Ke2 {[%clk 0:00:20.1]} 1/2-1/2

[Event "Early-Titled-Tuesday-Blitz-May-28-2024"]
[Site "Chess.com"]
[Date "2024.05.28"]
[Round "2"]
[White "ansko1999"]
[Black "Chernov_Mikhail"]
[Result "1/2-1/2"]
[WhiteElo "2594"]
[BlackElo "2329"]
[TimeControl "180+1"]
[EndTime "8:19:23 PDT"]
[Termination "Game drawn - insufficient material"]

1. b3 {[%clk 0:03:00.9]} 1... Nf6 {[%clk 0:02:53.3]} 2. g3 {[%clk 0:02:59.4]}
2... g6 {[%clk 0:02:50.1]} 3. Bb2 {[%clk 0:02:59.1]} 3... Bg7 {[%clk 0:02:51]}
4. Nf3 {[%clk 0:02:58.2]} 4... O-O {[%clk 0:02:51.2]} 5. Bg2 {[%clk 0:02:58.4]}
5... d6 {[%clk 0:02:51.3]} 6. d4 {[%clk 0:02:57.6]} 6... Nbd7 {[%clk 0:02:51.1]}
7. c4 {[%clk 0:02:57.1]} 7... Re8 {[%clk 0:02:51.4]} 8. Nc3 {[%clk 0:02:55.9]}
8... e5 {[%clk 0:02:51]} 9. dxe5 {[%clk 0:02:55.5]} 9... dxe5 {[%clk 0:02:51]}
10. Qc2 {[%clk 0:02:54.2]} 10... Qe7 {[%clk 0:02:45.7]} 11. Rd1 {[%clk
0:02:50.6]} 11... c6 {[%clk 0:02:44.7]} 12. Ng5 {[%clk 0:02:48]} 12... a5 {[%clk
0:02:37.4]} 13. O-O {[%clk 0:02:45]} 13... Nc5 {[%clk 0:02:36.6]} 14. Ba3 {[%clk
0:02:40.7]} 14... Be6 {[%clk 0:02:22.7]} 15. Nge4 {[%clk 0:02:33.9]} 15... Nfxe4
{[%clk 0:02:11.2]} 16. Nxe4 {[%clk 0:02:32.1]} 16... Bf5 {[%clk 0:02:07.3]} 17.
Qc1 {[%clk 0:02:04.7]} 17... Bxe4 {[%clk 0:01:35.7]} 18. Bxe4 {[%clk 0:02:03.7]}
18... f5 {[%clk 0:01:33.7]} 19. Qe3 {[%clk 0:01:43.5]} 19... Bf8 {[%clk
0:01:17.1]} 20. Bc2 {[%clk 0:01:23.1]} 20... e4 {[%clk 0:01:08.9]} 21. Kh1
{[%clk 0:01:09.9]} 21... Qe5 {[%clk 0:01:02.5]} 22. Qc1 {[%clk 0:01:04.3]} 22...
Bg7 {[%clk 0:00:53.8]} 23. Qe3 {[%clk 0:01:02.3]} 23... Bf8 {[%clk 0:00:41.1]}
24. Rg1 {[%clk 0:01:01.6]} 24... Rad8 {[%clk 0:00:38.2]} 25. Rxd8 {[%clk
0:00:55.1]} 25... Rxd8 {[%clk 0:00:39.1]} 26. f3 {[%clk 0:00:50.7]} 26... Qd4
{[%clk 0:00:26.3]} 27. Qxd4 {[%clk 0:00:44.8]} 27... Rxd4 {[%clk 0:00:27.2]} 28.
Rd1 {[%clk 0:00:38.6]} 28... Rxd1+ {[%clk 0:00:21.8]} 29. Bxd1 {[%clk
0:00:39.5]} 29... exf3 {[%clk 0:00:16.9]} 30. exf3 {[%clk 0:00:40.4]} 30... Nd3
{[%clk 0:00:13.7]} 31. Bxf8 {[%clk 0:00:26.9]} 31... Kxf8 {[%clk 0:00:14.6]} 32.
Kg2 {[%clk 0:00:23.7]} 32... f4 {[%clk 0:00:14.7]} 33. Be2 {[%clk 0:00:15.5]}
33... Nc1 {[%clk 0:00:10.2]} 34. Bd1 {[%clk 0:00:09.3]} 34... fxg3 {[%clk
0:00:08.7]} 35. Kxg3 {[%clk 0:00:07]} 35... Nxa2 {[%clk 0:00:08.7]} 36. Kf4
{[%clk 0:00:07.1]} 36... Ke7 {[%clk 0:00:08.2]} 37. Kg5 {[%clk 0:00:06.4]} 37...
Nc3 {[%clk 0:00:07.4]} 38. Bc2 {[%clk 0:00:05.9]} 38... b5 {[%clk 0:00:03.5]}
39. cxb5 {[%clk 0:00:05.5]} 39... cxb5 {[%clk 0:00:04.4]} 40. Kh6 {[%clk
0:00:06.1]} 40... a4 {[%clk 0:00:04.1]} 41. bxa4 {[%clk 0:00:06.6]} 41... bxa4
{[%clk 0:00:05]} 42. Kxh7 {[%clk 0:00:06.7]} 42... Kf6 {[%clk 0:00:02.9]} 43. h4
{[%clk 0:00:02.6]} 43... a3 {[%clk 0:00:03.2]} 44. Bb3 {[%clk 0:00:02.9]} 44...
a2 {[%clk 0:00:03.2]} 45. Bxa2 {[%clk 0:00:03.2]} 45... Nxa2 {[%clk 0:00:04.1]}
46. Kh6 {[%clk 0:00:02.6]} 46... Nc3 {[%clk 0:00:04]} 47. f4 {[%clk 0:00:02.5]}
47... Ne2 {[%clk 0:00:01.1]} 48. h5 {[%clk 0:00:03.1]} 48... Nxf4 {[%clk
0:00:01.9]} 49. hxg6 {[%clk 0:00:03]} 49... Nxg6 {[%clk 0:00:02.8]} 1/2-1/2

[Event "Early-Titled-Tuesday-Blitz-May-28-2024"]
[Site "Chess.com"]
[Date "2024.05.28"]
[Round "2"]
[White "jaskol95"]
[Black "guineo59"]
[Result "1/2-1/2"]
[WhiteElo "2526"]
[BlackElo "2323"]
[TimeControl "180+1"]
[EndTime "8:19:23 PDT"]
[Termination "Game drawn - insufficient material"]

1. e4 {[%clk 0:03:00.9]} 1... e6 {[%clk 0:02:59.7]} 2. Nf3 {[%clk 0:02:56]} 2...
d5 {[%clk 0:02:59.9]} 3. e5 {[%clk 0:02:56.7]} 3... c5 {[%clk 0:02:59.9]} 4. b4
{[%clk 0:02:57.3]} 4... cxb4 {[%clk 0:03:00.2]} 5. a3 {[%clk 0:02:57.9]} 5...
Nc6 {[%clk 0:03:00.5]} 6. axb4 {[%clk 0:02:57.8]} 6... f6 {[%clk 0:03:00]} 7. b5
{[%clk 0:02:50.3]} 7... Nxe5 {[%clk 0:02:58.5]} 8. Nxe5 {[%clk 0:02:50.4]} 8...
fxe5 {[%clk 0:02:58.6]} 9. Qh5+ {[%clk 0:02:50.9]} 9... g6 {[%clk 0:02:59.2]}
10. Qxe5 {[%clk 0:02:50.6]} 10... Nf6 {[%clk 0:02:59.8]} 11. b6 {[%clk
0:02:34.6]} 11... a6 {[%clk 0:02:59.5]} 12. Bb5+ {[%clk 0:02:30.4]} 12... Kf7
{[%clk 0:02:59.7]} 13. Bb2 {[%clk 0:02:25.6]} 13... Bg7 {[%clk 0:02:58.1]} 14.
Qf4 {[%clk 0:02:01.2]} 14... Qxb6 {[%clk 0:02:39.4]} 15. Nc3 {[%clk 0:01:48.2]}
15... e5 {[%clk 0:01:54.3]} 16. Qxe5 {[%clk 0:01:04.2]} 16... axb5 {[%clk
0:01:51.4]} 17. Nxd5 {[%clk 0:00:50.5]} 17... Rxa1+ {[%clk 0:01:49.9]} 18. Bxa1
{[%clk 0:00:48.7]} 18... Qe6 {[%clk 0:01:42]} 19. Nc7 {[%clk 0:00:40.9]} 19...
Qxe5+ {[%clk 0:01:32.5]} 20. Bxe5 {[%clk 0:00:41.8]} 20... Bd7 {[%clk
0:01:27.1]} 21. Bxf6 {[%clk 0:00:27.9]} 21... Bxf6 {[%clk 0:01:26]} 22. Nd5
{[%clk 0:00:28.6]} 22... Re8+ {[%clk 0:01:25.1]} 23. Kd1 {[%clk 0:00:26.9]}
23... Ra8 {[%clk 0:01:23]} 24. Ke2 {[%clk 0:00:25.8]} 24... Bg7 {[%clk
0:01:14.2]} 25. Rb1 {[%clk 0:00:22.7]} 25... Bc6 {[%clk 0:01:13.7]} 26. Ne3
{[%clk 0:00:22.2]} 26... Ra2 {[%clk 0:01:12.3]} 27. Rb4 {[%clk 0:00:19.6]} 27...
Ra4 {[%clk 0:01:07.8]} 28. Rb3 {[%clk 0:00:18.9]} 28... b4 {[%clk 0:01:03.1]}
29. f3 {[%clk 0:00:17.2]} 29... Bd4 {[%clk 0:01:01.6]} 30. Ng4 {[%clk 0:00:16]}
30... Bd5 {[%clk 0:00:58.9]} 31. Rb1 {[%clk 0:00:15.2]} 31... Bc5 {[%clk
0:00:52]} 32. Ne5+ {[%clk 0:00:15.1]} 32... Ke6 {[%clk 0:00:51.9]} 33. Nd3
{[%clk 0:00:15.7]} 33... Bd6 {[%clk 0:00:50.7]} 34. Kf2 {[%clk 0:00:14.9]} 34...
Bc4 {[%clk 0:00:48.7]} 35. Re1+ {[%clk 0:00:15]} 35... Kd5 {[%clk 0:00:47]} 36.
Nb2 {[%clk 0:00:15.4]} 36... Ra2 {[%clk 0:00:45.9]} 37. Nd1 {[%clk 0:00:15.6]}
37... Rxc2 {[%clk 0:00:44.3]} 38. Ne3+ {[%clk 0:00:15.5]} 38... Kd4 {[%clk
0:00:40]} 39. Nxc2+ {[%clk 0:00:16]} 39... Kd3 {[%clk 0:00:40.1]} 40. Ne3 {[%clk
0:00:12.2]} 40... Bc5 {[%clk 0:00:33.6]} 41. Rc1 {[%clk 0:00:12.3]} 41... Kxd2
{[%clk 0:00:26.2]} 42. Rxc4 {[%clk 0:00:11.5]} 42... Bxe3+ {[%clk 0:00:26.2]}
43. Kg3 {[%clk 0:00:12]} 43... b3 {[%clk 0:00:26.2]} 44. Rb4 {[%clk 0:00:12.2]}
44... Kc2 {[%clk 0:00:21.2]} 45. Rc4+ {[%clk 0:00:12.4]} 45... Kd3 {[%clk
0:00:20.6]} 46. Rb4 {[%clk 0:00:12.6]} 46... Kc3 {[%clk 0:00:20.7]} 47. Rxb7
{[%clk 0:00:13]} 47... b2 {[%clk 0:00:20.7]} 48. h4 {[%clk 0:00:09.8]} 48... Bd2
{[%clk 0:00:20.1]} 49. h5 {[%clk 0:00:07.2]} 49... Kc2 {[%clk 0:00:19.7]} 50.
hxg6 {[%clk 0:00:05.8]} 50... hxg6 {[%clk 0:00:19.6]} 51. Kg4 {[%clk 0:00:06]}
51... b1=Q {[%clk 0:00:19.3]} 52. Rxb1 {[%clk 0:00:06.5]} 52... Kxb1 {[%clk
0:00:20.2]} 53. f4 {[%clk 0:00:07.2]} 53... Kc2 {[%clk 0:00:20]} 54. f5 {[%clk
0:00:07.8]} 54... gxf5+ {[%clk 0:00:20]} 55. Kxf5 {[%clk 0:00:08.7]} 55... Kd3
{[%clk 0:00:20.5]} 56. g4 {[%clk 0:00:09.3]} 56... Kd4 {[%clk 0:00:19.9]} 57. g5
{[%clk 0:00:09.9]} 57... Bxg5 {[%clk 0:00:19.7]} 1/2-1/2

[Event "Early-Titled-Tuesday-Blitz-May-28-2024"]
[Site "Chess.com"]
[Date "2024.05.28"]
[Round "2"]
[White "biveklama"]
[Black "penguingm1"]
[Result "1-0"]
[WhiteElo "2631"]
[BlackElo "2964"]
[TimeControl "180+1"]
[EndTime "8:19:24 PDT"]
[Termination "biveklama won on time"]

1. e4 {[%clk 0:03:00.9]} 1... e5 {[%clk 0:02:59.2]} 2. Nf3 {[%clk 0:02:53.7]}
2... Nc6 {[%clk 0:02:58.5]} 3. Bc4 {[%clk 0:02:53.7]} 3... Nf6 {[%clk
0:02:57.6]} 4. d3 {[%clk 0:02:53.7]} 4... h6 {[%clk 0:02:57]} 5. c3 {[%clk
0:02:45.4]} 5... d6 {[%clk 0:02:56.5]} 6. O-O {[%clk 0:02:43.5]} 6... g5 {[%clk
0:02:56.7]} 7. Re1 {[%clk 0:02:38.2]} 7... Bg7 {[%clk 0:02:54.8]} 8. Bb3 {[%clk
0:02:29.5]} 8... O-O {[%clk 0:02:50.4]} 9. h3 {[%clk 0:02:24.7]} 9... Re8 {[%clk
0:02:29.7]} 10. Nbd2 {[%clk 0:02:17.8]} 10... Ne7 {[%clk 0:02:28.9]} 11. Nf1
{[%clk 0:02:16.6]} 11... Ng6 {[%clk 0:02:29.2]} 12. Bc2 {[%clk 0:02:10.4]} 12...
c6 {[%clk 0:02:29.1]} 13. d4 {[%clk 0:02:05.5]} 13... Qc7 {[%clk 0:02:26.8]} 14.
Ng3 {[%clk 0:02:02.5]} 14... Nf4 {[%clk 0:02:19.8]} 15. Nf5 {[%clk 0:01:42.6]}
15... Bxf5 {[%clk 0:02:19.1]} 16. exf5 {[%clk 0:01:42.6]} 16... e4 {[%clk
0:02:20]} 17. Bxf4 {[%clk 0:01:31.1]} 17... gxf4 {[%clk 0:02:19.9]} 18. Nh2
{[%clk 0:01:28]} 18... d5 {[%clk 0:01:47.5]} 19. Ng4 {[%clk 0:01:27.8]} 19...
Kh8 {[%clk 0:01:26.7]} 20. Nxf6 {[%clk 0:01:20.4]} 20... Bxf6 {[%clk 0:01:26.6]}
21. Qh5 {[%clk 0:01:21.1]} 21... Kh7 {[%clk 0:01:22.4]} 22. f3 {[%clk
0:00:59.5]} 22... e3 {[%clk 0:01:21.1]} 23. g4 {[%clk 0:00:47.1]} 23... fxg3
{[%clk 0:01:03.6]} 24. Re2 {[%clk 0:00:36]} 24... Re7 {[%clk 0:01:00.7]} 25. Kg2
{[%clk 0:00:32.8]} 25... Rg8 {[%clk 0:00:59.6]} 26. f4 {[%clk 0:00:30.5]} 26...
Qxf4 {[%clk 0:00:55]} 27. Rf1 {[%clk 0:00:28.1]} 27... Qf2+ {[%clk 0:00:11.8]}
28. Rexf2 {[%clk 0:00:27.5]} 28... gxf2+ {[%clk 0:00:12.7]} 29. Kf3 {[%clk
0:00:25.3]} 29... e2 {[%clk 0:00:08.5]} 30. Kxf2 {[%clk 0:00:25.2]} 30...
exf1=Q+ {[%clk 0:00:07.2]} 31. Kxf1 {[%clk 0:00:25.6]} 31... Rg3 {[%clk
0:00:06.7]} 32. Bd1 {[%clk 0:00:21.4]} 32... Kg7 {[%clk 0:00:05.6]} 33. Kf2
{[%clk 0:00:15.8]} 33... Rd3 {[%clk 0:00:05.9]} 34. Qg4+ {[%clk 0:00:13.9]}
34... Kf8 {[%clk 0:00:06.4]} 35. Bf3 {[%clk 0:00:03.5]} 35... Bg5 {[%clk
0:00:04.8]} 36. h4 {[%clk 0:00:03.4]} 36... Bd2 {[%clk 0:00:05.1]} 37. f6 {[%clk
0:00:02.9]} 37... Re6 {[%clk 0:00:03.4]} 38. Qg7+ {[%clk 0:00:02.9]} 38... Ke8
{[%clk 0:00:04]} 39. Qg8+ {[%clk 0:00:03.8]} 39... Kd7 {[%clk 0:00:04.7]} 40.
Qxf7+ {[%clk 0:00:04.6]} 40... Kd6 {[%clk 0:00:05.5]} 41. Qf8+ {[%clk
0:00:04.5]} 41... Kc7 {[%clk 0:00:05]} 42. Qf7+ {[%clk 0:00:04.2]} 42... Kd6
{[%clk 0:00:05.6]} 43. Qf8+ {[%clk 0:00:03.4]} 43... Kd7 {[%clk 0:00:04.8]} 44.
Bg4 {[%clk 0:00:02.9]} 44... Be1+ {[%clk 0:00:03.4]} 45. Kf1 {[%clk 0:00:02.1]}
45... Re3 {[%clk 0:00:03]} 46. Qe7+ {[%clk 0:00:01.8]} 46... Kc8 {[%clk
0:00:02.5]} 47. Bxe6+ {[%clk 0:00:02.6]} 47... Kb8 {[%clk 0:00:03.1]} 48. f7
{[%clk 0:00:02.4]} 1-0